[Event "*** Titled Tuesday Blitz"]
[Site "Chess.com"]
[Date "2020.02.04"]
[Round "5"]
[White "Leonid_Starozhilov"]
[Black "SantoBlue"]
[Result "0-1"]
[WhiteElo "2666"]
[BlackElo "2826"]
[TimeControl "180+2"]
[EndTime "14:07:10 PST"]
[Termination "SantoBlue won by checkmate"]

1. e4 {[%clk 0:03:01]} 1... e5 {[%clk 0:02:59.3]} 2. Nf3 {[%clk 0:03:01.9]} 2...
Nc6 {[%clk 0:03:00.2]} 3. Bc4 {[%clk 0:03:03]} 3... Bc5 {[%clk 0:03:00.6]} 4. d3
{[%clk 0:03:03.9]} 4... Nf6 {[%clk 0:03:01]} 5. Nc3 {[%clk 0:03:04.7]} 5... O-O
{[%clk 0:03:00]} 6. Be3 {[%clk 0:03:05.7]} 6... Bxe3 {[%clk 0:02:58.3]} 7. fxe3
{[%clk 0:03:07.6]} 7... d6 {[%clk 0:02:59.6]} 8. a3 {[%clk 0:03:05.7]} 8... Be6
{[%clk 0:03:00.2]} 9. Bxe6 {[%clk 0:02:55]} 9... fxe6 {[%clk 0:03:01]} 10. O-O
{[%clk 0:02:56.9]} 10... d5 {[%clk 0:02:57]} 11. exd5 {[%clk 0:02:52.6]} 11...
exd5 {[%clk 0:02:57.8]} 12. e4 {[%clk 0:02:50.8]} 12... d4 {[%clk 0:02:49.8]}
13. Nd5 {[%clk 0:02:42.3]} 13... Nxd5 {[%clk 0:02:48.9]} 14. exd5 {[%clk
0:02:44.2]} 14... Qxd5 {[%clk 0:02:50.7]} 15. Qe2 {[%clk 0:02:44.5]} 15... Rae8
{[%clk 0:02:45.5]} 16. Nd2 {[%clk 0:02:39.6]} 16... Ne7 {[%clk 0:02:45.4]} 17.
Rxf8+ {[%clk 0:02:34]} 17... Rxf8 {[%clk 0:02:46]} 18. Re1 {[%clk 0:02:35.3]}
18... Ng6 {[%clk 0:01:45.2]} 19. g3 {[%clk 0:01:52.9]} 19... Qd8 {[%clk
0:01:39.6]} 20. Qe4 {[%clk 0:01:29.1]} 20... c6 {[%clk 0:01:36.4]} 21. Qe2
{[%clk 0:01:25.1]} 21... Qd5 {[%clk 0:01:30.8]} 22. Ne4 {[%clk 0:01:24.9]} 22...
Ne7 {[%clk 0:01:30.7]} 23. Nd2 {[%clk 0:01:10.5]} 23... Ng6 {[%clk 0:01:24.5]}
24. Ne4 {[%clk 0:01:09.8]} 24... a5 {[%clk 0:01:22.6]} 25. Qh5 {[%clk
0:01:06.8]} 25... Qf7 {[%clk 0:01:17.5]} 26. Qe2 {[%clk 0:00:56]} 26... a4
{[%clk 0:01:16.3]} 27. h4 {[%clk 0:00:53.1]} 27... b5 {[%clk 0:01:08.5]} 28. h5
{[%clk 0:00:28.2]} 28... Ne7 {[%clk 0:01:09]} 29. Ng5 {[%clk 0:00:29]} 29... Qf5
{[%clk 0:01:06.5]} 30. Qxe5 {[%clk 0:00:26.1]} 30... Qf2+ {[%clk 0:00:54.9]} 31.
Kh1 {[%clk 0:00:27]} 31... h6 {[%clk 0:00:45.2]} 32. Qe6+ {[%clk 0:00:09.9]}
32... Kh8 {[%clk 0:00:45.6]} 33. Qxe7 {[%clk 0:00:10.2]} 33... hxg5 {[%clk
0:00:46.2]} 34. Qe5 {[%clk 0:00:07.3]} 34... Qf3+ {[%clk 0:00:43.6]} 35. Kg1
{[%clk 0:00:07.2]} 35... Qf2+ {[%clk 0:00:38.9]} 36. Kh1 {[%clk 0:00:08.3]}
36... Rf6 {[%clk 0:00:35.4]} 37. Qe8+ {[%clk 0:00:08.8]} 37... Kh7 {[%clk
0:00:36.2]} 38. Qe4+ {[%clk 0:00:08.8]} 38... Kh6 {[%clk 0:00:36.9]} 39. Qe5
{[%clk 0:00:07.2]} 39... Qf3+ {[%clk 0:00:36.3]} 40. Kg1 {[%clk 0:00:06.5]}
40... Qf2+ {[%clk 0:00:31]} 41. Kh1 {[%clk 0:00:07.7]} 41... Kxh5 {[%clk
0:00:26.3]} 42. g4+ {[%clk 0:00:04.2]} 42... Kh4 {[%clk 0:00:15]} 43. Qe4 {[%clk
0:00:04.7]} 43... Kh3 {[%clk 0:00:06]} 44. Rg1 {[%clk 0:00:02.7]} 44... Qh2#
{[%clk 0:00:06.7]} 0-1

[Event "*** Titled Tuesday Blitz"]
[Site "Chess.com"]
[Date "2020.02.04"]
[Round "5"]
[White "kacprekt"]
[Black "Storne89"]
[Result "0-1"]
[WhiteElo "2402"]
[BlackElo "2643"]
[TimeControl "180+2"]
[EndTime "14:07:10 PST"]
[Termination "Storne89 won by resignation"]

1. d4 {[%clk 0:03:01.9]} 1... Nf6 {[%clk 0:03:00.5]} 2. c4 {[%clk 0:02:57.6]}
2... e6 {[%clk 0:03:01.4]} 3. Nc3 {[%clk 0:02:58.9]} 3... Bb4 {[%clk 0:03:01.7]}
4. Bf4 {[%clk 0:03:00.5]} 4... O-O {[%clk 0:02:59.9]} 5. Qb3 {[%clk 0:03:00.6]}
5... a5 {[%clk 0:02:55.2]} 6. e3 {[%clk 0:02:57.6]} 6... d6 {[%clk 0:02:52]} 7.
Nf3 {[%clk 0:02:58.3]} 7... b6 {[%clk 0:02:53]} 8. a3 {[%clk 0:02:54.6]} 8...
Bxc3+ {[%clk 0:02:52.6]} 9. Qxc3 {[%clk 0:02:55.3]} 9... a4 {[%clk 0:02:51.4]}
10. Bd3 {[%clk 0:02:54.7]} 10... Bb7 {[%clk 0:02:52]} 11. O-O {[%clk 0:02:52]}
11... Nbd7 {[%clk 0:02:52.7]} 12. Nd2 {[%clk 0:02:49.4]} 12... Qe7 {[%clk
0:02:44.8]} 13. Bg5 {[%clk 0:02:48.8]} 13... c5 {[%clk 0:02:36.8]} 14. f4 {[%clk
0:02:48.5]} 14... Rfc8 {[%clk 0:02:30.1]} 15. Qc2 {[%clk 0:02:48]} 15... h6
{[%clk 0:02:26.4]} 16. Bh4 {[%clk 0:02:48.8]} 16... d5 {[%clk 0:02:27.7]} 17. f5
{[%clk 0:02:37.7]} 17... e5 {[%clk 0:02:23.6]} 18. dxe5 {[%clk 0:02:32.8]} 18...
Nxe5 {[%clk 0:02:11.7]} 19. cxd5 {[%clk 0:02:33.8]} 19... Bxd5 {[%clk
0:02:09.7]} 20. Be4 {[%clk 0:02:27.3]} 20... Rd8 {[%clk 0:01:58.3]} 21. Rae1
{[%clk 0:02:19.3]} 21... Neg4 {[%clk 0:01:44.5]} 22. Bxd5 {[%clk 0:02:14.8]}
22... Rxd5 {[%clk 0:01:45.4]} 23. e4 {[%clk 0:02:14.3]} 23... Rd4 {[%clk
0:01:44.2]} 24. e5 {[%clk 0:02:13.9]} 24... Nxe5 {[%clk 0:01:44.8]} 25. Bg3
{[%clk 0:02:10]} 25... Qd7 {[%clk 0:01:21.4]} 26. Bxe5 {[%clk 0:01:38.2]} 26...
Rxd2 {[%clk 0:01:21.9]} 27. Qc3 {[%clk 0:01:39.6]} 27... Qd5 {[%clk 0:01:08.1]}
28. Qg3 {[%clk 0:01:39.4]} 28... Rd3 {[%clk 0:00:55.7]} 29. Rf3 {[%clk
0:01:25.5]} 29... Rxf3 {[%clk 0:00:51.3]} 30. gxf3 {[%clk 0:01:27.4]} 30... Re8
{[%clk 0:00:38.9]} 31. Bxf6 {[%clk 0:01:20.3]} 31... Rxe1+ {[%clk 0:00:39.2]}
32. Qxe1 {[%clk 0:01:21.6]} 32... gxf6 {[%clk 0:00:40.7]} 33. Qe8+ {[%clk
0:01:22.7]} 33... Kg7 {[%clk 0:00:41.7]} 34. Kg2 {[%clk 0:01:19.4]} 34... Qd2+
{[%clk 0:00:36.8]} 35. Kg3 {[%clk 0:01:19.2]} 35... Qg5+ {[%clk 0:00:35.6]} 36.
Kf2 {[%clk 0:01:18]} 36... Qd2+ {[%clk 0:00:34]} 37. Kg3 {[%clk 0:01:18.7]}
37... Qxb2 {[%clk 0:00:33.8]} 38. Qxa4 {[%clk 0:01:15.2]} 38... Qe5+ {[%clk
0:00:34.6]} 39. Kf2 {[%clk 0:01:09.3]} 39... Qxf5 {[%clk 0:00:33.4]} 40. Qc6
{[%clk 0:00:58.6]} 40... Qe6 {[%clk 0:00:31.6]} 41. Qc7 {[%clk 0:00:57.1]} 41...
c4 {[%clk 0:00:24.3]} 42. a4 {[%clk 0:00:58.3]} 42... h5 {[%clk 0:00:18.1]} 43.
Qg3+ {[%clk 0:00:49.2]} 43... Kh7 {[%clk 0:00:19.3]} 44. Qh4 {[%clk 0:00:47.8]}
44... Kg6 {[%clk 0:00:16.9]} 45. Qg3+ {[%clk 0:00:42.1]} 45... Kh6 {[%clk
0:00:18.2]} 46. Qf4+ {[%clk 0:00:41]} 46... Kg7 {[%clk 0:00:19.5]} 47. Qg3+
{[%clk 0:00:41.6]} 47... Kh7 {[%clk 0:00:20]} 48. Qh4 {[%clk 0:00:42.4]} 48...
c3 {[%clk 0:00:10.9]} 49. Qxh5+ {[%clk 0:00:28]} 49... Kg7 {[%clk 0:00:12.2]}
50. Qh4 {[%clk 0:00:19.9]} 50... Qa2+ {[%clk 0:00:07.9]} 51. Kg1 {[%clk
0:00:15.6]} 51... Qb1+ {[%clk 0:00:08.8]} 52. Kg2 {[%clk 0:00:14.7]} 52... Qc2+
{[%clk 0:00:10]} 53. Kg1 {[%clk 0:00:13.7]} 53... Qd1+ {[%clk 0:00:10.7]} 54.
Kf2 {[%clk 0:00:14]} 54... Qd2+ {[%clk 0:00:11.9]} 55. Kf1 {[%clk 0:00:14.7]}
55... c2 {[%clk 0:00:13]} 0-1

[Event "*** Titled Tuesday Blitz"]
[Site "Chess.com"]
[Date "2020.02.04"]
[Round "5"]
[White "bsnsun"]
[Black "Rodalquilar"]
[Result "1/2-1/2"]
[WhiteElo "2435"]
[BlackElo "2653"]
[TimeControl "180+2"]
[EndTime "14:07:20 PST"]
[Termination "Game drawn by repetition"]

1. Nf3 {[%clk 0:03:01.9]} 1... d5 {[%clk 0:02:59.3]} 2. d4 {[%clk 0:03:02.4]}
2... Nf6 {[%clk 0:03:00.4]} 3. c4 {[%clk 0:03:03.5]} 3... dxc4 {[%clk
0:03:00.7]} 4. e3 {[%clk 0:03:03.4]} 4... g6 {[%clk 0:03:01.5]} 5. Bxc4 {[%clk
0:03:04.1]} 5... Bg7 {[%clk 0:03:03.1]} 6. Nc3 {[%clk 0:03:04.7]} 6... O-O
{[%clk 0:03:04.6]} 7. O-O {[%clk 0:03:05.8]} 7... Ne8 {[%clk 0:03:06.1]} 8. h3
{[%clk 0:03:04.3]} 8... Nd6 {[%clk 0:03:06.9]} 9. Bb3 {[%clk 0:03:04.3]} 9...
Nc6 {[%clk 0:03:07.6]} 10. e4 {[%clk 0:03:00.9]} 10... e5 {[%clk 0:03:07.4]} 11.
Bg5 {[%clk 0:02:56.6]} 11... Qd7 {[%clk 0:03:00.3]} 12. dxe5 {[%clk 0:02:35.6]}
12... Nxe5 {[%clk 0:03:01.4]} 13. Nxe5 {[%clk 0:02:36.8]} 13... Bxe5 {[%clk
0:03:03.3]} 14. Qf3 {[%clk 0:02:37.9]} 14... Kg7 {[%clk 0:02:39.6]} 15. Nd5
{[%clk 0:02:35]} 15... f6 {[%clk 0:02:34]} 16. Bf4 {[%clk 0:02:29.9]} 16... c6
{[%clk 0:02:35]} 17. Nc3 {[%clk 0:02:05.5]} 17... Qe7 {[%clk 0:02:35.9]} 18.
Rad1 {[%clk 0:02:04.4]} 18... Nf7 {[%clk 0:02:28.8]} 19. Be3 {[%clk 0:01:56.8]}
19... Be6 {[%clk 0:02:15.2]} 20. Bxe6 {[%clk 0:01:56.4]} 20... Qxe6 {[%clk
0:02:17.1]} 21. Na4 {[%clk 0:01:57.7]} 21... Qxa2 {[%clk 0:02:02.1]} 22. Nc5
{[%clk 0:01:56.3]} 22... b6 {[%clk 0:02:02.8]} 23. Nd7 {[%clk 0:01:52.8]} 23...
Rfd8 {[%clk 0:01:58]} 24. Nxe5 {[%clk 0:01:26.6]} 24... Nxe5 {[%clk 0:01:58.6]}
25. Qf4 {[%clk 0:01:28.2]} 25... Qe6 {[%clk 0:01:38.8]} 26. Qh6+ {[%clk
0:01:26.5]} 26... Kg8 {[%clk 0:01:40.2]} 27. f4 {[%clk 0:01:26.3]} 27... Nf7
{[%clk 0:01:41.7]} 28. Qh4 {[%clk 0:01:24.8]} 28... Qxe4 {[%clk 0:01:28.1]} 29.
Rxd8+ {[%clk 0:01:19.9]} 29... Rxd8 {[%clk 0:01:28.7]} 30. Re1 {[%clk
0:01:21.3]} 30... Qb4 {[%clk 0:01:20.6]} 31. Bf2 {[%clk 0:01:18.7]} 31... Qxb2
{[%clk 0:01:10.7]} 32. f5 {[%clk 0:01:16.9]} 32... g5 {[%clk 0:01:01]} 33. Qc4
{[%clk 0:01:17.6]} 33... Qb5 {[%clk 0:00:55.8]} 34. Qe6 {[%clk 0:01:10.4]} 34...
Kg7 {[%clk 0:00:56.6]} 35. h4 {[%clk 0:01:03.8]} 35... Qd5 {[%clk 0:00:40.2]}
36. Qe7 {[%clk 0:01:00.1]} 36... Qd7 {[%clk 0:00:22.8]} 37. Qe4 {[%clk
0:00:58.3]} 37... Nd6 {[%clk 0:00:23]} 38. Qa4 {[%clk 0:00:57.4]} 38... Nxf5
{[%clk 0:00:19.8]} 39. hxg5 {[%clk 0:00:58.7]} 39... fxg5 {[%clk 0:00:21.4]} 40.
Qg4 {[%clk 0:00:59.4]} 40... h6 {[%clk 0:00:19.3]} 41. Qe4 {[%clk 0:00:53.9]}
41... Qd5 {[%clk 0:00:17.6]} 42. Qa4 {[%clk 0:00:54.8]} 42... a5 {[%clk
0:00:14.9]} 43. Bxb6 {[%clk 0:00:53.2]} 43... Nh4 {[%clk 0:00:14.2]} 44. Qc2
{[%clk 0:00:46.8]} 44... Qd2 {[%clk 0:00:12.7]} 45. Re7+ {[%clk 0:00:32.4]}
45... Kf6 {[%clk 0:00:10.3]} 46. Bxd8 {[%clk 0:00:26.8]} 46... Qxd8 {[%clk
0:00:06]} 47. Re2 {[%clk 0:00:24.5]} 47... Qd4+ {[%clk 0:00:07]} 48. Rf2+ {[%clk
0:00:24.6]} 48... Kg7 {[%clk 0:00:08]} 49. Qxc6 {[%clk 0:00:22.7]} 49... a4
{[%clk 0:00:06.8]} 50. Qc7+ {[%clk 0:00:21.1]} 50... Kh8 {[%clk 0:00:03.5]} 51.
Qc8+ {[%clk 0:00:18.7]} 51... Kh7 {[%clk 0:00:05]} 52. Qb7+ {[%clk 0:00:18.8]}
52... Kh8 {[%clk 0:00:06.2]} 53. Qb8+ {[%clk 0:00:19.6]} 53... Kh7 {[%clk
0:00:07.6]} 54. Qc7+ {[%clk 0:00:20.9]} 54... Kh8 {[%clk 0:00:09.1]} 55. Qc8+
{[%clk 0:00:19.2]} 55... Kh7 {[%clk 0:00:10.6]} 56. Qc2+ {[%clk 0:00:20.8]}
56... Kg7 {[%clk 0:00:11.6]} 57. Qc7+ {[%clk 0:00:19.7]} 57... Kh8 {[%clk
0:00:12]} 1/2-1/2

[Event "*** Titled Tuesday Blitz"]
[Site "Chess.com"]
[Date "2020.02.04"]
[Round "5"]
[White "AliKa2810"]
[Black "mbojan"]
[Result "1-0"]
[WhiteElo "2649"]
[BlackElo "2744"]
[TimeControl "180+2"]
[EndTime "14:07:23 PST"]
[Termination "AliKa2810 won by resignation"]

1. e4 {[%clk 0:02:59.7]} 1... c5 {[%clk 0:03:00.7]} 2. Nf3 {[%clk 0:03:00.2]}
2... Nc6 {[%clk 0:03:01.9]} 3. Bb5 {[%clk 0:03:00.4]} 3... g6 {[%clk 0:03:02.7]}
4. O-O {[%clk 0:02:59.5]} 4... Bg7 {[%clk 0:03:03.6]} 5. Bxc6 {[%clk 0:02:57.1]}
5... dxc6 {[%clk 0:03:04.3]} 6. d3 {[%clk 0:02:57.6]} 6... Nf6 {[%clk
0:03:05.2]} 7. a4 {[%clk 0:02:50.5]} 7... Nd7 {[%clk 0:03:04.5]} 8. Nc3 {[%clk
0:02:50.9]} 8... e5 {[%clk 0:03:05.5]} 9. Be3 {[%clk 0:02:47.7]} 9... Qe7 {[%clk
0:03:06.2]} 10. a5 {[%clk 0:02:42.7]} 10... Nf8 {[%clk 0:03:03]} 11. Nd2 {[%clk
0:02:40]} 11... Ne6 {[%clk 0:03:01.4]} 12. Nc4 {[%clk 0:02:41.1]} 12... O-O
{[%clk 0:02:59.6]} 13. Ne2 {[%clk 0:02:38.9]} 13... h6 {[%clk 0:02:52.6]} 14.
Qd2 {[%clk 0:02:32.9]} 14... Kh7 {[%clk 0:02:53]} 15. f4 {[%clk 0:02:32.3]}
15... exf4 {[%clk 0:02:51.3]} 16. Nxf4 {[%clk 0:02:33.2]} 16... Nxf4 {[%clk
0:02:46.7]} 17. Bxf4 {[%clk 0:02:33.7]} 17... Rd8 {[%clk 0:02:47.8]} 18. Kh1
{[%clk 0:02:26]} 18... Be6 {[%clk 0:02:45.2]} 19. Ne5 {[%clk 0:02:22.6]} 19...
Rac8 {[%clk 0:02:17.6]} 20. Qf2 {[%clk 0:02:18.7]} 20... Re8 {[%clk 0:02:06.4]}
21. Rae1 {[%clk 0:02:12.4]} 21... Rf8 {[%clk 0:01:43.9]} 22. Re3 {[%clk
0:02:08.8]} 22... g5 {[%clk 0:01:37.9]} 23. Bg3 {[%clk 0:02:08.7]} 23... f5
{[%clk 0:01:38.7]} 24. Ng6 {[%clk 0:01:49]} 24... Kxg6 {[%clk 0:01:14]} 25.
exf5+ {[%clk 0:01:49.7]} 25... Kh7 {[%clk 0:01:09.1]} 26. Rxe6 {[%clk
0:01:45.4]} 26... Qxe6 {[%clk 0:01:10]} 27. fxe6 {[%clk 0:01:46.6]} 27... Rxf2
{[%clk 0:01:11.1]} 28. Bxf2 {[%clk 0:01:41.1]} 28... Re8 {[%clk 0:01:07.5]} 29.
Re1 {[%clk 0:01:17.9]} 29... b6 {[%clk 0:00:54.6]} 30. axb6 {[%clk 0:01:14.9]}
30... axb6 {[%clk 0:00:56.5]} 31. b3 {[%clk 0:01:16.4]} 31... Kg6 {[%clk
0:00:53.9]} 32. g4 {[%clk 0:00:46.8]} 32... Bc3 {[%clk 0:00:52]} 33. Re4 {[%clk
0:00:41.6]} 33... Kf6 {[%clk 0:00:48.4]} 34. Kg2 {[%clk 0:00:42.6]} 34... Rxe6
{[%clk 0:00:49.1]} 35. Rxe6+ {[%clk 0:00:32]} 35... Kxe6 {[%clk 0:00:51]} 36.
Kf3 {[%clk 0:00:33.6]} 36... Kd5 {[%clk 0:00:48]} 37. h4 {[%clk 0:00:32.2]}
37... gxh4 {[%clk 0:00:34.5]} 38. Bxh4 {[%clk 0:00:31.8]} 38... b5 {[%clk
0:00:36.1]} 39. Bf2 {[%clk 0:00:28.6]} 39... c4 {[%clk 0:00:36.9]} 40. dxc4+
{[%clk 0:00:18.6]} 40... bxc4 {[%clk 0:00:38.8]} 41. bxc4+ {[%clk 0:00:20]}
41... Kxc4 {[%clk 0:00:39.9]} 42. Be3 {[%clk 0:00:17.5]} 42... Bg7 {[%clk
0:00:40.7]} 43. Bd2 {[%clk 0:00:18.9]} 43... Kd4 {[%clk 0:00:40]} 44. Kf4 {[%clk
0:00:18.3]} 44... Bf8 {[%clk 0:00:28]} 45. Kf5 {[%clk 0:00:19.4]} 45... Be7
{[%clk 0:00:20.8]} 46. Kg6 {[%clk 0:00:20.2]} 46... Ke4 {[%clk 0:00:10.6]} 47.
Kxh6 {[%clk 0:00:20.1]} 47... Kf3 {[%clk 0:00:12.1]} 48. g5 {[%clk 0:00:21]}
48... Ke2 {[%clk 0:00:13.4]} 49. g6 {[%clk 0:00:08]} 49... Bf6 {[%clk
0:00:14.6]} 50. Ba5 {[%clk 0:00:08.4]} 50... Kd1 {[%clk 0:00:14.1]} 51. c3
{[%clk 0:00:09.4]} 51... Kc2 {[%clk 0:00:14.8]} 52. g7 {[%clk 0:00:10]} 52...
Bxg7+ {[%clk 0:00:15.5]} 53. Kxg7 {[%clk 0:00:11.7]} 53... Kb3 {[%clk
0:00:17.1]} 54. Kf6 {[%clk 0:00:11.3]} 54... c5 {[%clk 0:00:15.3]} 55. Ke6
{[%clk 0:00:10.2]} 55... Ka4 {[%clk 0:00:15.9]} 56. Bc7 {[%clk 0:00:10.8]} 56...
Kb3 {[%clk 0:00:17]} 57. Be5 {[%clk 0:00:11.9]} 57... Kc4 {[%clk 0:00:18.2]} 1-0

[Event "*** Titled Tuesday Blitz"]
[Site "Chess.com"]
[Date "2020.02.04"]
[Round "5"]
[White "vugarrasulov"]
[Black "LADIESGET2KNOWME"]
[Result "1-0"]
[WhiteElo "2899"]
[BlackElo "2500"]
[TimeControl "180+2"]
[EndTime "14:07:51 PST"]
[Termination "vugarrasulov won by resignation"]

1. e4 {[%clk 0:03:01.9]} 1... e5 {[%clk 0:03:00.9]} 2. Nc3 {[%clk 0:03:02.2]}
2... Nf6 {[%clk 0:03:01.8]} 3. Bc4 {[%clk 0:03:03.2]} 3... Nxe4 {[%clk
0:03:03.3]} 4. Qh5 {[%clk 0:03:03.8]} 4... Nd6 {[%clk 0:03:05.2]} 5. Bb3 {[%clk
0:03:04.9]} 5... Be7 {[%clk 0:03:06.9]} 6. Nf3 {[%clk 0:03:05.6]} 6... Nc6
{[%clk 0:03:08.3]} 7. Nxe5 {[%clk 0:03:05.7]} 7... Nxe5 {[%clk 0:03:10.2]} 8.
Qxe5 {[%clk 0:03:06.6]} 8... O-O {[%clk 0:03:12.1]} 9. Nd5 {[%clk 0:03:05.6]}
9... Bh4 {[%clk 0:02:39.6]} 10. O-O {[%clk 0:03:04.5]} 10... Re8 {[%clk
0:02:41.3]} 11. Qf4 {[%clk 0:03:03]} 11... Re4 {[%clk 0:02:42.4]} 12. Qf3 {[%clk
0:02:57]} 12... c6 {[%clk 0:02:37.9]} 13. d3 {[%clk 0:02:56.7]} 13... Re5 {[%clk
0:02:39.2]} 14. Bf4 {[%clk 0:02:54.9]} 14... Rf5 {[%clk 0:02:40]} 15. Qh3 {[%clk
0:02:34.8]} 15... cxd5 {[%clk 0:02:28]} 16. Bxd6 {[%clk 0:02:35.7]} 16... Rh5
{[%clk 0:02:13.3]} 17. g3 {[%clk 0:02:34.9]} 17... Rh6 {[%clk 0:02:10.2]} 18.
Bf4 {[%clk 0:02:28.3]} 18... Bg5 {[%clk 0:02:00.1]} 19. Qg4 {[%clk 0:02:29.1]}
19... Bxf4 {[%clk 0:01:55]} 20. Qxf4 {[%clk 0:02:31]} 20... Rh5 {[%clk
0:01:38.9]} 21. Rfe1 {[%clk 0:02:27.8]} 21... d6 {[%clk 0:01:40]} 22. Re3 {[%clk
0:02:13.9]} 22... Be6 {[%clk 0:01:41.2]} 23. Rae1 {[%clk 0:02:14]} 23... Rf5
{[%clk 0:01:32.2]} 24. Qd4 {[%clk 0:02:14.9]} 24... Qg5 {[%clk 0:01:24.9]} 25.
f4 {[%clk 0:02:13.8]} 25... Qg4 {[%clk 0:01:23.2]} 26. c3 {[%clk 0:02:12.9]}
26... h5 {[%clk 0:01:18.3]} 27. h4 {[%clk 0:02:09.6]} 27... Qg6 {[%clk
0:01:01.6]} 28. Kh2 {[%clk 0:02:06.1]} 28... Qf6 {[%clk 0:00:54.8]} 29. Qxf6
{[%clk 0:02:05.6]} 29... Rxf6 {[%clk 0:00:56.7]} 30. Bd1 {[%clk 0:01:55.3]}
30... g6 {[%clk 0:00:55.4]} 31. Bf3 {[%clk 0:01:54.8]} 31... Rc8 {[%clk
0:00:56.9]} 32. d4 {[%clk 0:01:55.5]} 32... b5 {[%clk 0:00:48.9]} 33. Kg2 {[%clk
0:01:48.3]} 33... a5 {[%clk 0:00:47.6]} 34. Kf2 {[%clk 0:01:49.6]} 34... b4
{[%clk 0:00:48.6]} 35. Rc1 {[%clk 0:01:50]} 35... Kg7 {[%clk 0:00:46.6]} 36. Ke1
{[%clk 0:01:50.6]} 36... Rb8 {[%clk 0:00:46.5]} 37. b3 {[%clk 0:01:46.8]} 37...
bxc3 {[%clk 0:00:46.2]} 38. Rcxc3 {[%clk 0:01:46.9]} 38... Rb4 {[%clk
0:00:48.1]} 39. Rc6 {[%clk 0:01:38]} 39... Bf5 {[%clk 0:00:36.3]} 40. Bxd5
{[%clk 0:01:33.5]} 40... Rxd4 {[%clk 0:00:37.4]} 41. Bc4 {[%clk 0:01:29.9]}
41... Bg4 {[%clk 0:00:34.3]} 42. Rd3 {[%clk 0:01:23.9]} 42... Re4+ {[%clk
0:00:29.4]} 43. Kd2 {[%clk 0:01:25]} 43... Re2+ {[%clk 0:00:30.7]} 44. Kc3
{[%clk 0:01:26.5]} 44... Rxa2 {[%clk 0:00:31.9]} 45. Rcxd6 {[%clk 0:01:21.3]}
45... Rxd6 {[%clk 0:00:33.1]} 46. Rxd6 {[%clk 0:01:23.1]} 46... Rg2 {[%clk
0:00:34.4]} 47. Rd3 {[%clk 0:01:23.9]} 47... Be2 {[%clk 0:00:33.7]} 48. Re3
{[%clk 0:01:23.5]} 48... Bxc4 {[%clk 0:00:35.1]} 49. bxc4 {[%clk 0:01:22]} 49...
Rg1 {[%clk 0:00:29.8]} 50. c5 {[%clk 0:01:23.1]} 50... Rc1+ {[%clk 0:00:30.6]}
51. Kd4 {[%clk 0:01:24.7]} 51... Kf6 {[%clk 0:00:28.9]} 52. Kd5 {[%clk
0:01:22.1]} 52... a4 {[%clk 0:00:29.6]} 53. c6 {[%clk 0:01:22.8]} 53... Rd1+
{[%clk 0:00:28.8]} 54. Kc5 {[%clk 0:01:23.7]} 54... Rc1+ {[%clk 0:00:27.6]} 55.
Kd6 {[%clk 0:01:16.9]} 55... Rd1+ {[%clk 0:00:22]} 56. Kc5 {[%clk 0:01:16.3]}
56... Rc1+ {[%clk 0:00:16.9]} 57. Kb6 {[%clk 0:01:17.8]} 57... Rb1+ {[%clk
0:00:16.7]} 58. Ka6 {[%clk 0:01:18.3]} 58... Rc1 {[%clk 0:00:17.8]} 59. Kb7
{[%clk 0:01:19.6]} 59... Rb1+ {[%clk 0:00:19.2]} 60. Kc8 {[%clk 0:01:21]} 60...
Rc1 {[%clk 0:00:19]} 61. c7 {[%clk 0:01:22.3]} 61... Kf5 {[%clk 0:00:07.7]} 62.
Kd7 {[%clk 0:01:17.9]} 62... Rd1+ {[%clk 0:00:08.4]} 63. Ke8 {[%clk 0:01:18.8]}
63... Rc1 {[%clk 0:00:09.3]} 64. Kd7 {[%clk 0:01:13.3]} 64... Rd1+ {[%clk
0:00:10.5]} 65. Kc6 {[%clk 0:01:14.5]} 65... Rc1+ {[%clk 0:00:12.4]} 66. Kb6
{[%clk 0:01:15.8]} 66... Rb1+ {[%clk 0:00:13.4]} 67. Ka5 {[%clk 0:01:08.3]}
67... Rc1 {[%clk 0:00:15.3]} 68. Re5+ {[%clk 0:01:09.1]} 68... Kg4 {[%clk
0:00:14.7]} 69. Kb6 {[%clk 0:01:10.4]} 69... a3 {[%clk 0:00:14.7]} 70. Rc5
{[%clk 0:01:10.3]} 70... Rb1+ {[%clk 0:00:06.3]} 71. Kc6 {[%clk 0:01:11.1]}
71... a2 {[%clk 0:00:06.4]} 72. c8=Q+ {[%clk 0:01:12.3]} 72... Kxg3 {[%clk
0:00:07.2]} 73. Rc3+ {[%clk 0:01:11.7]} 73... Kf2 {[%clk 0:00:06.8]} 74. Qh3
{[%clk 0:01:11]} 74... Rc1 {[%clk 0:00:02.4]} 75. Qh2+ {[%clk 0:01:10.3]} 1-0